[Event "Titled Tuesday Blitz January 04 2022"]
[White "Lenderman, Aleksandr"]
[Black "Sargsyan, Anna M."]
[WhiteFideId "2021285"]
[BlackFideId "13308130"]
[WhiteElo "2651"]
[BlackElo "2271"]
[Result "1-0"]
[Round "05"]
[TimeControl "180+1"]
[Date "2022.01.04"]
[WhiteClock "0:00:03"]
[BlackClock "0:00:09"]

1. Nf3 {[%clk 0:03:00]}  d5 {[%clk 0:02:56]} 2. e3 {[%clk 0:03:00]}  Nf6 {[%clk 0:02:56]} 3. c4 {[%clk 0:03:01]}  c6 {[%clk 0:02:53]} 4. Nc3 {[%clk 0:03:01]}  e6 {[%clk 0:02:54]} 5. d4 {[%clk 0:03:00]}  Nbd7 {[%clk 0:02:53]} 6. Be2 {[%clk 0:03:01]}  Bd6 {[%clk 0:02:50]} 7. O-O {[%clk 0:02:58]}  O-O {[%clk 0:02:51]} 8. b3 {[%clk 0:02:58]}  b6 {[%clk 0:02:49]} 9. Bb2 {[%clk 0:02:58]}  Bb7 {[%clk 0:02:50]} 10. Bd3 {[%clk 0:02:59]}  Rc8 {[%clk 0:02:50]} 11. Rc1 {[%clk 0:02:56]}  Qe7 {[%clk 0:02:49]} 12. Re1 {[%clk 0:02:41]}  c5 {[%clk 0:02:47]} 13. cxd5 {[%clk 0:02:40]}  exd5 {[%clk 0:02:44]} 14. Qe2 {[%clk 0:02:37]}  Rfe8 {[%clk 0:02:38]} 15. Ba6 {[%clk 0:02:35]}  Bxa6 {[%clk 0:02:31]} 16. Qxa6 {[%clk 0:02:36]}  c4 {[%clk 0:02:29]} 17. bxc4 {[%clk 0:02:36]}  Nb8 {[%clk 0:02:18]} 18. Qb5 {[%clk 0:02:29]}  dxc4 {[%clk 0:02:17]} 19. e4 {[%clk 0:02:23]}  Bf4 {[%clk 0:02:16]} 20. Rc2 {[%clk 0:02:17]}  a6 {[%clk 0:02:00]} 21. Qf5 {[%clk 0:02:09]}  Bh6 {[%clk 0:01:49]} 22. e5 {[%clk 0:02:09]}  b5 {[%clk 0:01:37]} 23. g4 {[%clk 0:01:52]}  Nfd7 {[%clk 0:01:29]} 24. g5 {[%clk 0:01:40]}  g6 {[%clk 0:01:29]} 25. Qg4 {[%clk 0:01:40]}  Bg7 {[%clk 0:01:27]} 26. Ne4 {[%clk 0:01:40]}  Nc6 {[%clk 0:01:20]} 27. Nd6 {[%clk 0:01:33]}  Nb4 {[%clk 0:01:20]} 28. Nxc8 {[%clk 0:01:24]}  Rxc8 {[%clk 0:01:21]} 29. Ba3 {[%clk 0:01:25]}  Nb6 {[%clk 0:01:04]} 30. e6 {[%clk 0:01:11]}  a5 {[%clk 0:00:59]} 31. Bxb4 {[%clk 0:01:07]}  axb4 {[%clk 0:00:58]} 32. exf7+ {[%clk 0:01:04]}  Qxf7 {[%clk 0:00:59]} 33. Rce2 {[%clk 0:01:03]}  Rf8 {[%clk 0:00:53]} 34. Qe6 {[%clk 0:00:23]}  Nd5 {[%clk 0:00:40]} 35. Qxf7+ {[%clk 0:00:19]}  Kxf7 {[%clk 0:00:41]} 36. Ne5+ {[%clk 0:00:18]}  Kg8 {[%clk 0:00:42]} 37. Nc6 {[%clk 0:00:13]}  Kf7 {[%clk 0:00:35]} 38. Re6 {[%clk 0:00:09]}  c3 {[%clk 0:00:20]} 39. Rd6 {[%clk 0:00:09]}  Nf4 {[%clk 0:00:20]} 40. Nxb4 {[%clk 0:00:06]}  Kg8 {[%clk 0:00:17]} 41. Re3 {[%clk 0:00:06]}  Rc8 {[%clk 0:00:14]} 42. Nc2 {[%clk 0:00:06]}  b4 {[%clk 0:00:12]} 43. Kf1 {[%clk 0:00:06]}  Bf8 {[%clk 0:00:11]} 44. Rd7 {[%clk 0:00:05]}  Ra8 {[%clk 0:00:09]} 45. Rf3 {[%clk 0:00:05]}  Nh5 {[%clk 0:00:08]} 46. Rb7 {[%clk 0:00:03]}  Rxa2 {[%clk 0:00:09]} 47. Rb8 {[%clk 0:00:03]}  Rxc2 {[%clk 0:00:08]} 48. Rbxf8+ {[%clk 0:00:03]}  Kg7 {[%clk 0:00:09]} 49. R3f7# {[%clk 0:00:03]} 1-0


[Site "https://www.chess.com"]

[Event "Titled Tuesday Blitz January 04 2022"]
[White "Madaminov, Mukhiddin"]
[Black "Nesterov, Arseniy"]
[WhiteFideId "14210703"]
[BlackFideId "24198455"]
[WhiteElo "1916"]
[BlackElo "2489"]
[Result "1/2-1/2"]
[Round "05"]
[TimeControl "180+1"]
[Date "2022.01.04"]
[WhiteClock "0:00:06"]
[BlackClock "0:00:03"]

1. d4 {[%clk 0:03:00]}  d5 {[%clk 0:03:00]} 2. Nc3 {[%clk 0:03:01]}  Bf5 {[%clk 0:02:58]} 3. Bf4 {[%clk 0:03:00]}  e6 {[%clk 0:02:58]} 4. e3 {[%clk 0:03:00]}  Bd6 {[%clk 0:02:58]} 5. Nf3 {[%clk 0:02:57]}  Bxf4 {[%clk 0:02:57]} 6. exf4 {[%clk 0:02:57]}  Ne7 {[%clk 0:02:57]} 7. Ne2 {[%clk 0:02:55]}  h6 {[%clk 0:02:51]} 8. Ng3 {[%clk 0:02:54]}  Bh7 {[%clk 0:02:46]} 9. c3 {[%clk 0:02:54]}  O-O {[%clk 0:02:43]} 10. Bd3 {[%clk 0:02:51]}  Bxd3 {[%clk 0:02:40]} 11. Qxd3 {[%clk 0:02:52]}  Qd6 {[%clk 0:02:38]} 12. Qe3 {[%clk 0:02:48]}  Nd7 {[%clk 0:02:33]} 13. Ne5 {[%clk 0:02:44]}  Nxe5 {[%clk 0:02:16]} 14. fxe5 {[%clk 0:02:43]}  Qb6 {[%clk 0:02:12]} 15. O-O {[%clk 0:02:29]}  a5 {[%clk 0:02:06]} 16. Rab1 {[%clk 0:02:26]}  Rfc8 {[%clk 0:01:52]} 17. f4 {[%clk 0:02:18]}  c5 {[%clk 0:01:45]} 18. f5 {[%clk 0:02:08]}  cxd4 {[%clk 0:01:43]} 19. cxd4 {[%clk 0:02:04]}  exf5 {[%clk 0:01:41]} 20. Nxf5 {[%clk 0:02:05]}  Nxf5 {[%clk 0:01:42]} 21. Rxf5 {[%clk 0:02:06]}  Rc4 {[%clk 0:01:41]} 22. Rf4 {[%clk 0:02:01]}  Rac8 {[%clk 0:01:39]} 23. Rbf1 {[%clk 0:01:56]}  R8c7 {[%clk 0:01:38]} 24. b3 {[%clk 0:01:45]}  Rc3 {[%clk 0:01:37]} 25. Qf2 {[%clk 0:01:39]}  Qg6 {[%clk 0:01:19]} 26. h4 {[%clk 0:01:23]}  Rc2 {[%clk 0:01:11]} 27. Qf3 {[%clk 0:01:23]}  Qe6 {[%clk 0:00:47]} 28. Rf2 {[%clk 0:01:15]}  R7c3 {[%clk 0:00:38]} 29. Qh5 {[%clk 0:00:37]}  Rxf2 {[%clk 0:00:31]} 30. Rxf2 {[%clk 0:00:37]}  Rd3 {[%clk 0:00:27]} 31. Rf4 {[%clk 0:00:38]}  Rd2 {[%clk 0:00:24]} 32. a4 {[%clk 0:00:37]}  Rb2 {[%clk 0:00:15]} 33. Qf3 {[%clk 0:00:36]}  b6 {[%clk 0:00:08]} 34. Qc3 {[%clk 0:00:36]}  Ra2 {[%clk 0:00:06]} 35. h5 {[%clk 0:00:32]}  Qe7 {[%clk 0:00:05]} 36. Qc8+ {[%clk 0:00:31]}  Kh7 {[%clk 0:00:06]} 37. Qf5+ {[%clk 0:00:30]}  Kg8 {[%clk 0:00:06]} 38. Kh2 {[%clk 0:00:14]}  Qe6 {[%clk 0:00:05]} 39. Qd3 {[%clk 0:00:11]}  Rb2 {[%clk 0:00:03]} 40. Qc3 {[%clk 0:00:11]}  Re2 {[%clk 0:00:04]} 41. Qc7 {[%clk 0:00:11]}  Rb2 {[%clk 0:00:03]} 42. Qd8+ {[%clk 0:00:10]}  Kh7 {[%clk 0:00:03]} 43. Qf8 {[%clk 0:00:10]}  Rxb3 {[%clk 0:00:02]} 44. Rxf7 {[%clk 0:00:10]}  Qg4 {[%clk 0:00:03]} 45. Rf3 {[%clk 0:00:06]}  Qxh5+ {[%clk 0:00:03]} 46. Kg1 {[%clk 0:00:07]}  Rb1+ {[%clk 0:00:03]} 47. Rf1 {[%clk 0:00:06]}  Rxf1+ {[%clk 0:00:03]} 48. Qxf1 {[%clk 0:00:07]}  Qg4 {[%clk 0:00:03]} 49. Qd3+ {[%clk 0:00:06]}  Kg8 {[%clk 0:00:03]} 50. Qe3 {[%clk 0:00:03]}  Kf7 {[%clk 0:00:03]} 51. Qf3+ {[%clk 0:00:03]}  Qxf3 {[%clk 0:00:02]} 52. gxf3 {[%clk 0:00:04]}  g5 {[%clk 0:00:02]} 53. Kg2 {[%clk 0:00:05]}  h5 {[%clk 0:00:03]} 54. Kg3 {[%clk 0:00:04]}  Ke6 {[%clk 0:00:03]} 55. f4 {[%clk 0:00:04]}  Kf5 {[%clk 0:00:02]} 56. fxg5 {[%clk 0:00:04]}  Kxg5 {[%clk 0:00:03]} 57. Kh3 {[%clk 0:00:05]}  Kf5 {[%clk 0:00:02]} 58. Kh4 {[%clk 0:00:05]}  Kg6 {[%clk 0:00:03]} 59. Kg3 {[%clk 0:00:05]}  Kg5 {[%clk 0:00:04]} 60. Kh3 {[%clk 0:00:06]}  Kf5 {[%clk 0:00:03]} 61. Kg3 {[%clk 0:00:06]}  Kg5 {[%clk 0:00:03]} 1/2-1/2


[Site "https://www.chess.com"]

[Event "Titled Tuesday Blitz January 04 2022"]
[White "Maghsoodloo, Parham"]
[Black "Alexiadis, Hristos"]
[WhiteFideId "12539929"]
[BlackFideId "4249623"]
[WhiteElo "2630"]
[BlackElo "2416"]
[Result "1/2-1/2"]
[Round "05"]
[TimeControl "180+1"]
[Date "2022.01.04"]
[WhiteClock "0:00:04"]
[BlackClock "0:00:15"]

1. e4 {[%clk 0:03:00]}  e5 {[%clk 0:03:00]} 2. Nf3 {[%clk 0:03:00]}  Nc6 {[%clk 0:03:00]} 3. Bb5 {[%clk 0:03:00]}  Nf6 {[%clk 0:03:00]} 4. O-O {[%clk 0:03:00]}  Nxe4 {[%clk 0:03:01]} 5. d4 {[%clk 0:02:59]}  Nd6 {[%clk 0:03:01]} 6. Bxc6 {[%clk 0:03:00]}  dxc6 {[%clk 0:03:02]} 7. dxe5 {[%clk 0:03:01]}  Nf5 {[%clk 0:03:02]} 8. Qxd8+ {[%clk 0:03:01]}  Kxd8 {[%clk 0:03:03]} 9. h3 {[%clk 0:03:02]}  h6 {[%clk 0:03:03]} 10. Nc3 {[%clk 0:03:02]}  Bd7 {[%clk 0:03:03]} 11. g4 {[%clk 0:02:54]}  Ne7 {[%clk 0:03:02]} 12. Kg2 {[%clk 0:02:54]}  b6 {[%clk 0:03:00]} 13. Rd1 {[%clk 0:02:45]}  Kc8 {[%clk 0:03:00]} 14. Bf4 {[%clk 0:02:36]}  c5 {[%clk 0:02:55]} 15. Nd2 {[%clk 0:02:14]}  Kb7 {[%clk 0:02:49]} 16. Nde4 {[%clk 0:02:09]}  Bc6 {[%clk 0:02:49]} 17. f3 {[%clk 0:02:10]}  g5 {[%clk 0:02:47]} 18. Bg3 {[%clk 0:02:10]}  Ng6 {[%clk 0:02:48]} 19. Nf6 {[%clk 0:02:03]}  Bg7 {[%clk 0:02:44]} 20. Kf2 {[%clk 0:01:52]}  Rad8 {[%clk 0:02:42]} 21. Nce4 {[%clk 0:01:46]}  Bxe4 {[%clk 0:02:34]} 22. fxe4 {[%clk 0:01:47]}  Bxf6 {[%clk 0:02:32]} 23. exf6 {[%clk 0:01:47]}  Rhe8 {[%clk 0:02:32]} 24. Ke3 {[%clk 0:01:30]}  Nf8 {[%clk 0:02:30]} 25. Rxd8 {[%clk 0:01:22]}  Rxd8 {[%clk 0:02:31]} 26. h4 {[%clk 0:01:22]}  Re8 {[%clk 0:02:27]} 27. Rf1 {[%clk 0:01:15]}  Kc6 {[%clk 0:02:25]} 28. Rf5 {[%clk 0:01:13]}  Ne6 {[%clk 0:02:24]} 29. c3 {[%clk 0:01:08]}  Rd8 {[%clk 0:02:21]} 30. Ke2 {[%clk 0:01:05]}  c4 {[%clk 0:02:16]} 31. Bf2 {[%clk 0:00:39]}  Rg8 {[%clk 0:02:00]} 32. Kf3 {[%clk 0:00:33]}  Rd8 {[%clk 0:01:38]} 33. Be3 {[%clk 0:00:31]}  Rd1 {[%clk 0:01:30]} 34. hxg5 {[%clk 0:00:20]}  hxg5 {[%clk 0:01:30]} 35. Ke2 {[%clk 0:00:12]}  Rb1 {[%clk 0:01:30]} 36. Bxg5 {[%clk 0:00:10]}  Rxb2+ {[%clk 0:01:30]} 37. Kf3 {[%clk 0:00:10]}  Rc2 {[%clk 0:01:25]} 38. Be3 {[%clk 0:00:08]}  Rxc3 {[%clk 0:01:25]} 39. g5 {[%clk 0:00:05]}  Nd4+ {[%clk 0:01:25]} 40. Kf4 {[%clk 0:00:05]}  Nxf5 {[%clk 0:01:26]} 41. exf5 {[%clk 0:00:05]}  Kd7 {[%clk 0:01:12]} 42. g6 {[%clk 0:00:05]}  fxg6 {[%clk 0:01:11]} 43. fxg6 {[%clk 0:00:05]}  Ke8 {[%clk 0:00:59]} 44. Ke4 {[%clk 0:00:03]}  Rxe3+ {[%clk 0:00:58]} 45. Kxe3 {[%clk 0:00:03]}  b5 {[%clk 0:00:56]} 46. Kd4 {[%clk 0:00:04]}  a5 {[%clk 0:00:54]} 47. a3 {[%clk 0:00:03]}  c3 {[%clk 0:00:20]} 48. Kxc3 {[%clk 0:00:03]}  c5 {[%clk 0:00:21]} 49. Kd3 {[%clk 0:00:03]}  Kf8 {[%clk 0:00:20]} 50. Ke4 {[%clk 0:00:04]}  b4 {[%clk 0:00:20]} 51. axb4 {[%clk 0:00:04]}  cxb4 {[%clk 0:00:18]} 52. Kf5 {[%clk 0:00:03]}  b3 {[%clk 0:00:18]} 53. Ke6 {[%clk 0:00:04]}  b2 {[%clk 0:00:18]} 54. g7+ {[%clk 0:00:04]}  Kg8 {[%clk 0:00:18]} 55. f7+ {[%clk 0:00:05]}  Kxg7 {[%clk 0:00:18]} 56. Ke7 {[%clk 0:00:06]}  b1=Q {[%clk 0:00:19]} 57. f8=Q+ {[%clk 0:00:07]}  Kh7 {[%clk 0:00:19]} 58. Qf7+ {[%clk 0:00:08]}  Kh6 {[%clk 0:00:18]} 59. Qf6+ {[%clk 0:00:08]}  Qg6 {[%clk 0:00:18]} 60. Qh4+ {[%clk 0:00:03]}  Kg7 {[%clk 0:00:19]} 61. Qd4+ {[%clk 0:00:03]}  Kh7 {[%clk 0:00:18]} 62. Qa4 {[%clk 0:00:03]}  Qg7+ {[%clk 0:00:16]} 63. Kd6 {[%clk 0:00:02]}  Qg5 {[%clk 0:00:15]} 64. Kc6 {[%clk 0:00:02]}  Kh6 {[%clk 0:00:15]} 65. Kb6 {[%clk 0:00:02]}  Kh5 {[%clk 0:00:16]} 66. Qxa5 {[%clk 0:00:03]}  Qxa5+ {[%clk 0:00:15]} 67. Kxa5 {[%clk 0:00:04]} 1/2-1/2


[Site "https://www.chess.com"]

[Event "Titled Tuesday Blitz January 04 2022"]
[White "Martinez Alcantara, Jose Eduardo"]
[Black "Arabidze, Meri"]
[WhiteFideId "3805662"]
[BlackFideId "13604040"]
[WhiteElo "2690"]
[BlackElo "2329"]
[Result "1-0"]
[Round "05"]
[TimeControl "180+1"]
[Date "2022.01.04"]
[WhiteClock "0:00:39"]
[BlackClock "0:00:02"]

1. e4 {[%clk 0:03:00]}  c5 {[%clk 0:02:59]} 2. Nf3 {[%clk 0:03:01]}  e6 {[%clk 0:03:00]} 3. c3 {[%clk 0:03:01]}  d5 {[%clk 0:02:58]} 4. e5 {[%clk 0:03:01]}  d4 {[%clk 0:02:57]} 5. Bd3 {[%clk 0:03:00]}  Nc6 {[%clk 0:02:57]} 6. O-O {[%clk 0:02:59]}  Nge7 {[%clk 0:02:57]} 7. Re1 {[%clk 0:02:59]}  Nf5 {[%clk 0:02:56]} 8. Be4 {[%clk 0:02:58]}  Be7 {[%clk 0:02:52]} 9. d3 {[%clk 0:02:57]}  O-O {[%clk 0:02:51]} 10. Bxc6 {[%clk 0:02:57]}  bxc6 {[%clk 0:02:50]} 11. c4 {[%clk 0:02:58]}  h5 {[%clk 0:02:43]} 12. Nbd2 {[%clk 0:02:57]}  a5 {[%clk 0:02:26]} 13. Ne4 {[%clk 0:02:57]}  a4 {[%clk 0:02:22]} 14. Bg5 {[%clk 0:02:57]}  f6 {[%clk 0:02:15]} 15. Bd2 {[%clk 0:02:30]}  a3 {[%clk 0:01:59]} 16. b3 {[%clk 0:02:30]}  Qc7 {[%clk 0:01:54]} 17. h3 {[%clk 0:02:07]}  fxe5 {[%clk 0:01:52]} 18. Bg5 {[%clk 0:02:05]}  Bf6 {[%clk 0:01:34]} 19. Nxc5 {[%clk 0:01:52]}  Qe7 {[%clk 0:01:33]} 20. Ne4 {[%clk 0:01:52]}  c5 {[%clk 0:01:32]} 21. Qd2 {[%clk 0:01:40]}  Bb7 {[%clk 0:01:27]} 22. h4 {[%clk 0:01:33]}  Qc7 {[%clk 0:00:55]} 23. Qe2 {[%clk 0:01:24]}  Rae8 {[%clk 0:00:48]} 24. g3 {[%clk 0:01:23]}  Re7 {[%clk 0:00:26]} 25. Nfd2 {[%clk 0:01:20]}  Ref7 {[%clk 0:00:23]} 26. Qxh5 {[%clk 0:01:17]}  Nd6 {[%clk 0:00:19]} 27. Bxf6 {[%clk 0:00:59]}  gxf6 {[%clk 0:00:17]} 28. Qg4+ {[%clk 0:00:59]}  Kh8 {[%clk 0:00:14]} 29. Qxe6 {[%clk 0:01:00]}  Nxe4 {[%clk 0:00:13]} 30. Nxe4 {[%clk 0:00:59]}  f5 {[%clk 0:00:12]} 31. Qh6+ {[%clk 0:00:57]}  Kg8 {[%clk 0:00:13]} 32. Ng5 {[%clk 0:00:53]}  Re7 {[%clk 0:00:07]} 33. Qg6+ {[%clk 0:00:51]}  Kh8 {[%clk 0:00:06]} 34. Qh6+ {[%clk 0:00:52]}  Kg8 {[%clk 0:00:07]} 35. Qg6+ {[%clk 0:00:53]}  Kh8 {[%clk 0:00:07]} 36. f3 {[%clk 0:00:52]}  Qc6 {[%clk 0:00:06]} 37. Qxc6 {[%clk 0:00:50]}  Bxc6 {[%clk 0:00:06]} 38. Kf2 {[%clk 0:00:51]}  Kg8 {[%clk 0:00:06]} 39. Re2 {[%clk 0:00:51]}  Rfe8 {[%clk 0:00:06]} 40. Rae1 {[%clk 0:00:51]}  Kg7 {[%clk 0:00:07]} 41. Rb1 {[%clk 0:00:49]}  Kf6 {[%clk 0:00:07]} 42. b4 {[%clk 0:00:49]}  cxb4 {[%clk 0:00:07]} 43. Rxb4 {[%clk 0:00:50]}  Kg7 {[%clk 0:00:05]} 44. Rb6 {[%clk 0:00:50]}  Ba8 {[%clk 0:00:05]} 45. h5 {[%clk 0:00:50]}  Kh8 {[%clk 0:00:04]} 46. Rh6+ {[%clk 0:00:49]}  Kg7 {[%clk 0:00:04]} 47. Rg6+ {[%clk 0:00:50]}  Kh8 {[%clk 0:00:04]} 48. g4 {[%clk 0:00:45]}  fxg4 {[%clk 0:00:04]} 49. fxg4 {[%clk 0:00:45]}  Rf8+ {[%clk 0:00:04]} 50. Kg3 {[%clk 0:00:45]}  Rg8 {[%clk 0:00:03]} 51. Rh6+ {[%clk 0:00:38]}  Kg7 {[%clk 0:00:04]} 52. Rh7+ {[%clk 0:00:38]}  Kf8 {[%clk 0:00:03]} 53. Rxe7 {[%clk 0:00:39]}  Kxe7 {[%clk 0:00:04]} 54. Rxe5+ {[%clk 0:00:40]}  Kd6 {[%clk 0:00:03]} 55. Nf7+ {[%clk 0:00:38]}  Kc7 {[%clk 0:00:02]} 56. h6 {[%clk 0:00:39]} 1-0


[Site "https://www.chess.com"]

[Event "Titled Tuesday Blitz January 04 2022"]
[White "Moskalenko, Alexander"]
[Black "Theodorou, Nikolas"]
[WhiteFideId "4155351"]
[BlackFideId "4262875"]
[WhiteElo "2515"]
[BlackElo "2472"]
[Result "1-0"]
[Round "05"]
[TimeControl "180+1"]
[Date "2022.01.04"]
[WhiteClock "0:01:32"]
[BlackClock "0:00:16"]

1. c4 {[%clk 0:03:00]}  Nf6 {[%clk 0:03:00]} 2. g3 {[%clk 0:02:58]}  g6 {[%clk 0:03:00]} 3. Bg2 {[%clk 0:02:58]}  Bg7 {[%clk 0:03:01]} 4. d4 {[%clk 0:02:59]}  O-O {[%clk 0:03:02]} 5. Nc3 {[%clk 0:02:59]}  d6 {[%clk 0:03:02]} 6. Nf3 {[%clk 0:02:59]}  Nc6 {[%clk 0:03:03]} 7. O-O {[%clk 0:02:59]}  e5 {[%clk 0:03:04]} 8. dxe5 {[%clk 0:02:51]}  dxe5 {[%clk 0:03:05]} 9. Bg5 {[%clk 0:02:46]}  h6 {[%clk 0:03:05]} 10. Qxd8 {[%clk 0:02:45]}  Rxd8 {[%clk 0:03:06]} 11. Bxf6 {[%clk 0:02:45]}  Bxf6 {[%clk 0:03:07]} 12. Nd5 {[%clk 0:02:46]}  Kg7 {[%clk 0:03:07]} 13. Nxc7 {[%clk 0:02:45]}  Rb8 {[%clk 0:03:08]} 14. Nd5 {[%clk 0:02:45]}  e4 {[%clk 0:03:07]} 15. Nd2 {[%clk 0:02:45]}  e3 {[%clk 0:03:07]} 16. fxe3 {[%clk 0:02:44]}  Bxb2 {[%clk 0:03:07]} 17. Rab1 {[%clk 0:02:45]}  Ba3 {[%clk 0:03:04]} 18. Nb3 {[%clk 0:02:44]}  Ne5 {[%clk 0:02:58]} 19. Rf4 {[%clk 0:02:39]}  g5 {[%clk 0:02:33]} 20. Rd4 {[%clk 0:02:22]}  Be6 {[%clk 0:02:33]} 21. c5 {[%clk 0:02:19]}  Nc6 {[%clk 0:02:27]} 22. Ra4 {[%clk 0:02:15]}  Bxc5 {[%clk 0:01:54]} 23. Nxc5 {[%clk 0:02:16]}  Bxd5 {[%clk 0:01:54]} 24. Rxb7 {[%clk 0:02:15]}  Bxg2 {[%clk 0:01:49]} 25. Ne6+ {[%clk 0:02:12]}  Kg6 {[%clk 0:01:05]} 26. Nxd8 {[%clk 0:02:13]}  Rxd8 {[%clk 0:01:05]} 27. Kxg2 {[%clk 0:02:12]}  f6 {[%clk 0:01:05]} 28. Ra6 {[%clk 0:02:11]}  Ne5 {[%clk 0:01:05]} 29. Re7 {[%clk 0:01:57]}  Kf5 {[%clk 0:00:31]} 30. e4+ {[%clk 0:01:53]}  Kxe4 {[%clk 0:00:31]} 31. Rxf6 {[%clk 0:01:52]}  Kd4 {[%clk 0:00:20]} 32. Rxh6 {[%clk 0:01:46]}  Ng4 {[%clk 0:00:17]} 33. Ra6 {[%clk 0:01:46]}  Ne3+ {[%clk 0:00:15]} 34. Rxe3 {[%clk 0:01:43]}  Kxe3 {[%clk 0:00:15]} 35. Rxa7 {[%clk 0:01:42]}  Kxe2 {[%clk 0:00:15]} 36. Ra5 {[%clk 0:01:41]}  g4 {[%clk 0:00:12]} 37. Ra4 {[%clk 0:01:39]}  Rg8 {[%clk 0:00:11]} 38. Rb4 {[%clk 0:01:34]}  Ke3 {[%clk 0:00:08]} 39. a4 {[%clk 0:01:34]}  Kd3 {[%clk 0:00:06]} 40. a5 {[%clk 0:01:34]}  Ra8 {[%clk 0:00:03]} 41. Ra4 {[%clk 0:01:33]}  Ra6 {[%clk 0:00:02]} 42. Rxg4 {[%clk 0:01:34]}  Rxa5 {[%clk 0:00:02]} 43. h4 {[%clk 0:01:34]}  Ke3 {[%clk 0:00:02]} 44. Rf4 {[%clk 0:01:35]}  Ra8 {[%clk 0:00:02]} 45. Kh3 {[%clk 0:01:35]}  Rh8 {[%clk 0:00:03]} 46. Rf7 {[%clk 0:01:34]}  Ke4 {[%clk 0:00:03]} 47. g4 {[%clk 0:01:34]}  Ke5 {[%clk 0:00:03]} 48. h5 {[%clk 0:01:35]}  Ke6 {[%clk 0:00:03]} 49. Rf1 {[%clk 0:01:35]}  Rf8 {[%clk 0:00:03]} 50. Rxf8 {[%clk 0:01:27]}  Ke7 {[%clk 0:00:03]} 51. Rf1 {[%clk 0:01:26]}  Kd6 {[%clk 0:00:04]} 52. Kg2 {[%clk 0:01:27]}  Kc5 {[%clk 0:00:04]} 53. Kg1 {[%clk 0:01:28]}  Kd4 {[%clk 0:00:05]} 54. Re1 {[%clk 0:01:28]}  Kc3 {[%clk 0:00:06]} 55. Kf1 {[%clk 0:01:29]}  Kd2 {[%clk 0:00:07]} 56. g5 {[%clk 0:01:30]}  Kd3 {[%clk 0:00:08]} 57. g6 {[%clk 0:01:31]}  Kd4 {[%clk 0:00:09]} 58. h6 {[%clk 0:01:31]}  Kc5 {[%clk 0:00:10]} 59. g7 {[%clk 0:01:31]}  Kc6 {[%clk 0:00:11]} 60. h7 {[%clk 0:01:32]}  Kb6 {[%clk 0:00:12]} 61. Ke2 {[%clk 0:01:32]}  Kb7 {[%clk 0:00:12]} 62. Kd3 {[%clk 0:01:33]}  Ka6 {[%clk 0:00:13]} 63. Kc4 {[%clk 0:01:34]}  Kb6 {[%clk 0:00:14]} 64. Re6+ {[%clk 0:01:34]}  Kc7 {[%clk 0:00:15]} 65. Kd5 {[%clk 0:01:34]}  Kd7 {[%clk 0:00:16]} 66. g8=Q {[%clk 0:01:33]}  Kc7 {[%clk 0:00:16]} 67. Qg7+ {[%clk 0:01:32]} 1-0


[Site "https://www.chess.com"]

[Event "Titled Tuesday Blitz January 04 2022"]
[White "Nakamura, Hikaru"]
[Black "Gvanceladze, Anna"]
[WhiteFideId "2016192"]
[BlackFideId "4113721"]
[WhiteElo "2850"]
[BlackElo "2048"]
[Result "1-0"]
[Round "05"]
[TimeControl "180+1"]
[Date "2022.01.04"]
[WhiteClock "0:01:34"]
[BlackClock "0:00:06"]

1. Nf3 {[%clk 0:02:59]}  c5 {[%clk 0:02:34]} 2. e4 {[%clk 0:02:59]}  g6 {[%clk 0:02:33]} 3. c3 {[%clk 0:02:55]}  d5 {[%clk 0:02:32]} 4. e5 {[%clk 0:02:55]}  Nc6 {[%clk 0:02:29]} 5. Bb5 {[%clk 0:02:54]}  e6 {[%clk 0:02:22]} 6. d4 {[%clk 0:02:52]}  Qb6 {[%clk 0:02:20]} 7. Ba4 {[%clk 0:02:46]}  Bd7 {[%clk 0:02:17]} 8. O-O {[%clk 0:02:45]}  Bg7 {[%clk 0:02:08]} 9. Bxc6 {[%clk 0:02:33]}  bxc6 {[%clk 0:02:04]} 10. dxc5 {[%clk 0:02:32]}  Qxc5 {[%clk 0:02:03]} 11. Be3 {[%clk 0:02:31]}  Qa5 {[%clk 0:02:00]} 12. b4 {[%clk 0:02:31]}  Qb5 {[%clk 0:01:54]} 13. a4 {[%clk 0:02:29]}  Qb7 {[%clk 0:01:52]} 14. Nbd2 {[%clk 0:02:28]}  Ne7 {[%clk 0:01:50]} 15. Bc5 {[%clk 0:02:28]}  Bc8 {[%clk 0:01:38]} 16. Nb3 {[%clk 0:02:25]}  O-O {[%clk 0:01:26]} 17. a5 {[%clk 0:02:22]}  f6 {[%clk 0:01:17]} 18. exf6 {[%clk 0:02:16]}  Bxf6 {[%clk 0:01:18]} 19. Bd4 {[%clk 0:02:16]}  Qc7 {[%clk 0:01:06]} 20. Re1 {[%clk 0:02:15]}  Nf5 {[%clk 0:01:01]} 21. Bxf6 {[%clk 0:02:15]}  Rxf6 {[%clk 0:01:01]} 22. Nc5 {[%clk 0:02:10]}  Bd7 {[%clk 0:00:59]} 23. Ne5 {[%clk 0:02:06]}  Be8 {[%clk 0:00:55]} 24. Ng4 {[%clk 0:02:06]}  Rf7 {[%clk 0:00:38]} 25. Nxe6 {[%clk 0:02:05]}  Qd6 {[%clk 0:00:34]} 26. Nc5 {[%clk 0:01:56]}  h5 {[%clk 0:00:31]} 27. Re6 {[%clk 0:01:51]}  Qf4 {[%clk 0:00:27]} 28. Nf6+ {[%clk 0:01:51]}  Kf8 {[%clk 0:00:23]} 29. Qe2 {[%clk 0:01:47]}  Ng7 {[%clk 0:00:17]} 30. Rxe8+ {[%clk 0:01:35]}  Nxe8 {[%clk 0:00:14]} 31. Ne6+ {[%clk 0:01:35]}  Ke7 {[%clk 0:00:06]} 32. Nxf4+ {[%clk 0:01:34]} 1-0


[Site "https://www.chess.com"]